[Event "Early-Titled-Tuesday-Blitz-September-05-2023"]
[Site "Chess.com"]
[Date "2023.09.05"]
[Round "5"]
[White "viktorgen2021"]
[Black "vovachesss"]
[Result "1-0"]
[WhiteElo "2486"]
[BlackElo "2774"]
[TimeControl "180+1"]
[EndTime "8:54:41 PDT"]
[Termination "viktorgen2021 won on time"]

1. Nf3 {[%clk 0:02:50.4]} 1... d5 {[%clk 0:02:58.7]} 2. c4 {[%clk 0:02:48.2]}
2... e6 {[%clk 0:02:57.5]} 3. g3 {[%clk 0:02:48]} 3... g6 {[%clk 0:02:55.9]} 4.
Bg2 {[%clk 0:02:47.9]} 4... Bg7 {[%clk 0:02:56.6]} 5. O-O {[%clk 0:02:48.2]}
5... Ne7 {[%clk 0:02:57.3]} 6. d4 {[%clk 0:02:48.7]} 6... O-O {[%clk 0:02:57.6]}
7. Nc3 {[%clk 0:02:48.6]} 7... b6 {[%clk 0:02:54.3]} 8. Ne5 {[%clk 0:02:46.3]}
8... Bb7 {[%clk 0:02:54]} 9. Qa4 {[%clk 0:02:42.9]} 9... Nbc6 {[%clk 0:02:49.5]}
10. cxd5 {[%clk 0:02:36]} 10... Nxe5 {[%clk 0:02:48.6]} 11. d6 {[%clk
0:02:23.3]} 11... Nd5 {[%clk 0:02:08.9]} 12. dxc7 {[%clk 0:01:46.8]} 12... Qxc7
{[%clk 0:01:56.5]} 13. Nxd5 {[%clk 0:01:35.8]} 13... Bxd5 {[%clk 0:01:48.7]} 14.
Bxd5 {[%clk 0:01:31.7]} 14... exd5 {[%clk 0:01:34.6]} 15. dxe5 {[%clk
0:01:19.4]} 15... Qxe5 {[%clk 0:01:34.3]} 16. Be3 {[%clk 0:01:01.5]} 16... Qxb2
{[%clk 0:01:31.4]} 17. Rad1 {[%clk 0:00:59.6]} 17... Qxe2 {[%clk 0:01:11.7]} 18.
Rxd5 {[%clk 0:00:56.5]} 18... Qf3 {[%clk 0:00:57.3]} 19. Rfd1 {[%clk 0:00:54.7]}
19... h5 {[%clk 0:00:50.2]} 20. h4 {[%clk 0:00:53.1]} 20... Rfe8 {[%clk
0:00:46.4]} 21. R5d3 {[%clk 0:00:36.1]} 21... Qe4 {[%clk 0:00:38.7]} 22. Qa6
{[%clk 0:00:31.7]} 22... Re7 {[%clk 0:00:27.9]} 23. a4 {[%clk 0:00:30]} 23...
Rae8 {[%clk 0:00:26.4]} 24. a5 {[%clk 0:00:28.6]} 24... Qa4 {[%clk 0:00:23]} 25.
Rd5 {[%clk 0:00:22]} 25... Bc3 {[%clk 0:00:12.4]} 26. Qd3 {[%clk 0:00:15.7]}
26... Bxa5 {[%clk 0:00:10.1]} 27. Rd6 {[%clk 0:00:08.1]} 27... Qe4 {[%clk
0:00:08.8]} 28. Qb5 {[%clk 0:00:06.8]} 28... Bc3 {[%clk 0:00:07.7]} 29. Rd8
{[%clk 0:00:06.7]} 29... Kg7 {[%clk 0:00:05.2]} 30. Qb3 {[%clk 0:00:04.3]} 30...
Bf6 {[%clk 0:00:04.5]} 31. R8d7 {[%clk 0:00:04.3]} 31... Rxd7 {[%clk 0:00:04]}
32. Rxd7 {[%clk 0:00:05.2]} 32... Re7 {[%clk 0:00:04.5]} 33. Rd6 {[%clk
0:00:03.7]} 33... Qe5 {[%clk 0:00:04.4]} 34. Rd5 {[%clk 0:00:03.5]} 34... Qe6
{[%clk 0:00:04.6]} 35. Qd3 {[%clk 0:00:03.1]} 35... Rc7 {[%clk 0:00:05.2]} 36.
Rd6 {[%clk 0:00:03.2]} 36... Qe5 {[%clk 0:00:04.7]} 37. Rxf6 {[%clk 0:00:03.4]}
1-0

[Event "Early-Titled-Tuesday-Blitz-September-05-2023"]
[Site "Chess.com"]
[Date "2023.09.05"]
[Round "5"]
[White "Arteler"]
[Black "ChainedDowntohell"]
[Result "1/2-1/2"]
[WhiteElo "2395"]
[BlackElo "2551"]
[TimeControl "180+1"]
[EndTime "8:54:41 PDT"]
[Termination "Game drawn by stalemate"]

1. d4 {[%clk 0:02:59.6]} 1... Nf6 {[%clk 0:02:52.8]} 2. Nc3 {[%clk 0:02:56.2]}
2... d5 {[%clk 0:02:43.3]} 3. Bf4 {[%clk 0:02:55.7]} 3... a6 {[%clk 0:02:41.2]}
4. e3 {[%clk 0:02:55.4]} 4... b5 {[%clk 0:02:40.7]} 5. Nf3 {[%clk 0:02:54.7]}
5... Bb7 {[%clk 0:02:40.4]} 6. Ne5 {[%clk 0:02:55]} 6... Nfd7 {[%clk 0:02:31.3]}
7. g4 {[%clk 0:02:53.5]} 7... Nxe5 {[%clk 0:02:25.7]} 8. Bxe5 {[%clk 0:02:54.4]}
8... Nd7 {[%clk 0:01:58.2]} 9. Bg3 {[%clk 0:02:54.7]} 9... g6 {[%clk 0:01:53.2]}
10. Bg2 {[%clk 0:02:52.7]} 10... e6 {[%clk 0:01:45.4]} 11. h4 {[%clk 0:02:49.1]}
11... h5 {[%clk 0:01:45.3]} 12. gxh5 {[%clk 0:02:42.8]} 12... Rxh5 {[%clk
0:01:39.1]} 13. Bf3 {[%clk 0:02:42.5]} 13... Rh6 {[%clk 0:01:35.6]} 14. Qe2
{[%clk 0:02:22.2]} 14... c5 {[%clk 0:01:34.5]} 15. O-O-O {[%clk 0:02:17.6]}
15... c4 {[%clk 0:01:34.7]} 16. e4 {[%clk 0:02:17.3]} 16... Nb6 {[%clk
0:00:53.3]} 17. exd5 {[%clk 0:01:51.5]} 17... Nxd5 {[%clk 0:00:53.1]} 18. Nxd5
{[%clk 0:01:52.2]} 18... Bxd5 {[%clk 0:00:53.5]} 19. h5 {[%clk 0:01:52.7]} 19...
c3 {[%clk 0:00:47.6]} 20. hxg6 {[%clk 0:01:46]} 20... cxb2+ {[%clk 0:00:41.3]}
21. Kxb2 {[%clk 0:01:46.9]} 21... Qa5 {[%clk 0:00:23.6]} 22. gxf7+ {[%clk
0:01:35.4]} 22... Kd7 {[%clk 0:00:17.3]} 23. Bxd5 {[%clk 0:01:29]} 23... Ba3+
{[%clk 0:00:16.5]} 24. Kb1 {[%clk 0:01:13.1]} 24... Qb4+ {[%clk 0:00:07.4]} 25.
Bb3 {[%clk 0:01:10.9]} 25... Qc3 {[%clk 0:00:08]} 26. f8=N+ {[%clk 0:01:07.4]}
26... Rxf8 {[%clk 0:00:07.3]} 27. Bxe6+ {[%clk 0:00:49.4]} 27... Rxe6 {[%clk
0:00:02.2]} 28. Rh7+ {[%clk 0:00:50.3]} 28... Kd8 {[%clk 0:00:01.5]} 29. Bh4+
{[%clk 0:00:45.3]} 29... Rff6 {[%clk 0:00:01.1]} 30. Bxf6+ {[%clk 0:00:43.5]}
30... Rxf6 {[%clk 0:00:02]} 31. Rh8+ {[%clk 0:00:37.7]} 31... Kd7 {[%clk
0:00:02.6]} 32. Qe8+ {[%clk 0:00:37.6]} 32... Kd6 {[%clk 0:00:03]} 33. Qe5+
{[%clk 0:00:17.8]} 33... Kd7 {[%clk 0:00:03.1]} 34. Rh7+ {[%clk 0:00:18.4]}
34... Kd8 {[%clk 0:00:02.6]} 35. Qb8+ {[%clk 0:00:18.6]} 35... Qc8 {[%clk
0:00:02]} 36. Rh8+ {[%clk 0:00:19.5]} 36... Rf8 {[%clk 0:00:01.6]} 37. Qxc8+
{[%clk 0:00:20.3]} 37... Kxc8 {[%clk 0:00:01.2]} 38. Rxf8+ {[%clk 0:00:19.7]}
38... Bxf8 {[%clk 0:00:02.1]} 39. c3 {[%clk 0:00:20]} 39... Kd7 {[%clk 0:00:03]}
40. Kc2 {[%clk 0:00:20.9]} 40... Bd6 {[%clk 0:00:03.5]} 41. Rh1 {[%clk
0:00:20.7]} 41... Kc6 {[%clk 0:00:03.9]} 42. Rh6 {[%clk 0:00:21.3]} 42... Kd5
{[%clk 0:00:04.7]} 43. Kd3 {[%clk 0:00:21.9]} 43... Bf4 {[%clk 0:00:04.9]} 44.
Rxa6 {[%clk 0:00:21.6]} 44... b4 {[%clk 0:00:04.6]} 45. cxb4 {[%clk 0:00:21]}
45... Be3 {[%clk 0:00:05.5]} 46. fxe3 {[%clk 0:00:20.8]} 1/2-1/2

[Event "Early-Titled-Tuesday-Blitz-September-05-2023"]
[Site "Chess.com"]
[Date "2023.09.05"]
[Round "5"]
[White "Atanejhad"]
[Black "noblerone"]
[Result "1/2-1/2"]
[WhiteElo "2420"]
[BlackElo "2534"]
[TimeControl "180+1"]
[EndTime "8:54:41 PDT"]
[Termination "Game drawn by repetition"]

1. d4 {[%clk 0:03:00.9]} 1... d5 {[%clk 0:02:56.4]} 2. c4 {[%clk 0:03:00.3]}
2... c6 {[%clk 0:02:56.9]} 3. Nc3 {[%clk 0:03:00.5]} 3... Nf6 {[%clk 0:02:57.2]}
4. Nf3 {[%clk 0:03:00.8]} 4... dxc4 {[%clk 0:02:57.1]} 5. a4 {[%clk 0:02:59.9]}
5... Bf5 {[%clk 0:02:56.3]} 6. Ne5 {[%clk 0:02:57.5]} 6... Nbd7 {[%clk 0:02:54]}
7. Nxc4 {[%clk 0:02:57.2]} 7... Nb6 {[%clk 0:02:53.4]} 8. e3 {[%clk 0:02:57.8]}
8... Nxc4 {[%clk 0:02:38.7]} 9. Bxc4 {[%clk 0:02:58.7]} 9... e6 {[%clk
0:02:38.4]} 10. a5 {[%clk 0:02:57]} 10... a6 {[%clk 0:02:27.3]} 11. Qb3 {[%clk
0:02:55.8]} 11... Rb8 {[%clk 0:02:22.5]} 12. O-O {[%clk 0:02:55.8]} 12... Bd6
{[%clk 0:02:17.3]} 13. f3 {[%clk 0:02:54.9]} 13... Bc7 {[%clk 0:02:14.8]} 14.
Qa3 {[%clk 0:02:40.2]} 14... Bg6 {[%clk 0:01:59.5]} 15. Rd1 {[%clk 0:02:31.8]}
15... Bd6 {[%clk 0:01:53.3]} 16. Qb3 {[%clk 0:02:23.2]} 16... O-O {[%clk
0:01:52.6]} 17. e4 {[%clk 0:02:19.4]} 17... Bc7 {[%clk 0:01:53]} 18. Be3 {[%clk
0:02:16.2]} 18... Bxa5 {[%clk 0:01:45.4]} 19. Ne2 {[%clk 0:02:12.7]} 19... Bc7
{[%clk 0:01:36.9]} 20. Rac1 {[%clk 0:02:09.1]} 20... Kh8 {[%clk 0:01:13]} 21.
Nf4 {[%clk 0:02:07.4]} 21... Nh5 {[%clk 0:01:12.3]} 22. Nxg6+ {[%clk 0:02:03.5]}
22... hxg6 {[%clk 0:01:12.4]} 23. g4 {[%clk 0:01:55.5]} 23... Nf4 {[%clk
0:01:08.4]} 24. Rc2 {[%clk 0:01:52.1]} 24... Qh4 {[%clk 0:01:05.8]} 25. e5
{[%clk 0:01:43.2]} 25... Nd5 {[%clk 0:00:52.7]} 26. Bf2 {[%clk 0:01:32.1]} 26...
Qg5 {[%clk 0:00:50.6]} 27. Re2 {[%clk 0:01:19.4]} 27... Nf4 {[%clk 0:00:44.3]}
28. Re4 {[%clk 0:01:07.9]} 28... Nh3+ {[%clk 0:00:42.7]} 29. Kg2 {[%clk
0:01:08.3]} 29... Nxf2 {[%clk 0:00:43.2]} 30. Kxf2 {[%clk 0:01:09.1]} 30... Qh4+
{[%clk 0:00:41.8]} 31. Kg2 {[%clk 0:01:07.5]} 31... Rfd8 {[%clk 0:00:42.3]} 32.
Qe3 {[%clk 0:00:56.6]} 32... g5 {[%clk 0:00:30.4]} 33. h3 {[%clk 0:00:49.8]}
33... Bb6 {[%clk 0:00:29.1]} 34. f4 {[%clk 0:00:46.9]} 34... gxf4 {[%clk
0:00:26.4]} 35. Rxf4 {[%clk 0:00:17.1]} 35... Rd7 {[%clk 0:00:26.4]} 36. Rdf1
{[%clk 0:00:15.6]} 36... Rbd8 {[%clk 0:00:20.6]} 37. Rxf7 {[%clk 0:00:15.8]}
37... Rxf7 {[%clk 0:00:19.5]} 38. Rxf7 {[%clk 0:00:16.7]} 38... Bxd4 {[%clk
0:00:19.2]} 39. Qf3 {[%clk 0:00:12.5]} 39... Bxe5 {[%clk 0:00:17.7]} 40. Rf8+
{[%clk 0:00:12.2]} 40... Rxf8 {[%clk 0:00:18.2]} 41. Qxf8+ {[%clk 0:00:12.2]}
41... Kh7 {[%clk 0:00:17.5]} 42. Bd3+ {[%clk 0:00:12.8]} 42... g6 {[%clk
0:00:16.6]} 43. Qf7+ {[%clk 0:00:12.4]} 43... Kh8 {[%clk 0:00:16.7]} 44. Qf8+
{[%clk 0:00:11.9]} 44... Kh7 {[%clk 0:00:17.2]} 45. Qf7+ {[%clk 0:00:12.2]}
45... Kh8 {[%clk 0:00:17.4]} 46. Qe8+ {[%clk 0:00:11.3]} 46... Kh7 {[%clk
0:00:14.7]} 47. Qf7+ {[%clk 0:00:11.3]} 1/2-1/2

[Event "Early-Titled-Tuesday-Blitz-September-05-2023"]
[Site "Chess.com"]
[Date "2023.09.05"]
[Round "5"]
[White "Ural_bogatyr"]
[Black "effefe"]
[Result "1-0"]
[WhiteElo "2551"]
[BlackElo "2357"]
[TimeControl "180+1"]
[EndTime "8:54:42 PDT"]
[Termination "Ural_bogatyr won on time"]

1. d4 {[%clk 0:03:00.9]} 1... Nf6 {[%clk 0:02:53.8]} 2. Nc3 {[%clk 0:02:56.6]}
2... g6 {[%clk 0:02:50.8]} 3. e4 {[%clk 0:02:55.3]} 3... d6 {[%clk 0:02:50.2]}
4. Nf3 {[%clk 0:02:53.8]} 4... Bg7 {[%clk 0:02:49.5]} 5. Be3 {[%clk 0:02:50.4]}
5... c6 {[%clk 0:02:46.9]} 6. Qd2 {[%clk 0:02:46.5]} 6... b5 {[%clk 0:02:39.7]}
7. Bd3 {[%clk 0:02:45.7]} 7... Nbd7 {[%clk 0:02:28.6]} 8. Bh6 {[%clk 0:02:43.2]}
8... Bxh6 {[%clk 0:02:27.8]} 9. Qxh6 {[%clk 0:02:44.1]} 9... b4 {[%clk
0:02:22.9]} 10. Ne2 {[%clk 0:02:43.4]} 10... Qa5 {[%clk 0:02:20.2]} 11. O-O
{[%clk 0:02:41.3]} 11... Qh5 {[%clk 0:02:17.3]} 12. Qd2 {[%clk 0:02:40.1]} 12...
Qa5 {[%clk 0:02:11.3]} 13. a3 {[%clk 0:02:38.2]} 13... Rb8 {[%clk 0:02:04.2]}
14. b3 {[%clk 0:02:20.6]} 14... c5 {[%clk 0:01:38.5]} 15. axb4 {[%clk
0:02:18.9]} 15... Qxb4 {[%clk 0:01:36.6]} 16. Qxb4 {[%clk 0:02:14.2]} 16... Rxb4
{[%clk 0:01:34.2]} 17. Rxa7 {[%clk 0:02:14.6]} 17... cxd4 {[%clk 0:01:31.5]} 18.
Nexd4 {[%clk 0:02:14]} 18... Rb7 {[%clk 0:01:00.5]} 19. Rfa1 {[%clk 0:02:07.1]}
19... O-O {[%clk 0:00:57.6]} 20. Nc6 {[%clk 0:02:04.5]} 20... Re8 {[%clk
0:00:48.5]} 21. e5 {[%clk 0:02:02]} 21... dxe5 {[%clk 0:00:38.9]} 22. Nfxe5
{[%clk 0:02:01.6]} 22... Nxe5 {[%clk 0:00:38.5]} 23. Nxe5 {[%clk 0:02:02.5]}
23... Rxa7 {[%clk 0:00:30.1]} 24. Rxa7 {[%clk 0:02:03.4]} 24... Nd5 {[%clk
0:00:20.5]} 25. Bc4 {[%clk 0:02:01.1]} 25... Be6 {[%clk 0:00:14.8]} 26. Nc6
{[%clk 0:01:55.7]} 26... Kf8 {[%clk 0:00:14.5]} 27. Nd4 {[%clk 0:01:52.2]} 27...
Rd8 {[%clk 0:00:09.6]} 28. Nxe6+ {[%clk 0:01:51.6]} 28... fxe6 {[%clk
0:00:10.5]} 29. g3 {[%clk 0:01:51.7]} 29... Kf7 {[%clk 0:00:10.5]} 30. Kg2
{[%clk 0:01:50.6]} 30... Kf6 {[%clk 0:00:11.1]} 31. Ra6 {[%clk 0:01:47.3]} 31...
Ke5 {[%clk 0:00:09.4]} 32. Ra7 {[%clk 0:01:46.4]} 32... Re8 {[%clk 0:00:08]} 33.
Kf3 {[%clk 0:01:44.6]} 33... Kd4 {[%clk 0:00:07.5]} 34. Bd3 {[%clk 0:01:36.7]}
34... e5 {[%clk 0:00:03.8]} 35. Ke2 {[%clk 0:01:33]} 35... e6 {[%clk 0:00:02.4]}
36. f3 {[%clk 0:01:31.8]} 36... Kc5 {[%clk 0:00:02.3]} 37. Kd2 {[%clk 0:01:31]}
37... Rh8 {[%clk 0:00:01.3]} 38. Be4 {[%clk 0:01:29.3]} 38... Nb4 {[%clk
0:00:01.2]} 39. Rd7 {[%clk 0:01:27.2]} 39... Nd5 {[%clk 0:00:01.6]} 40. c3
{[%clk 0:01:25.7]} 40... Nf6 {[%clk 0:00:01.8]} 41. b4+ {[%clk 0:01:24.1]} 41...
Kb6 {[%clk 0:00:01.3]} 42. Rb7+ {[%clk 0:01:23.6]} 42... Ka6 {[%clk 0:00:01.4]}
43. Re7 {[%clk 0:01:24.2]} 43... Nxe4+ {[%clk 0:00:01.8]} 44. fxe4 {[%clk
0:01:23.8]} 44... Kb5 {[%clk 0:00:02.2]} 45. Kc2 {[%clk 0:01:23.2]} 45... Kc6
{[%clk 0:00:02.3]} 46. Rxe6+ {[%clk 0:01:22.2]} 46... Kd7 {[%clk 0:00:02.9]} 47.
Rxe5 {[%clk 0:01:22.4]} 47... Rf8 {[%clk 0:00:03.7]} 48. Rd5+ {[%clk 0:01:21.4]}
48... Kc6 {[%clk 0:00:03.4]} 49. Rd2 {[%clk 0:01:20.9]} 49... Rf3 {[%clk
0:00:03.4]} 50. Re2 {[%clk 0:01:20.6]} 50... Kb5 {[%clk 0:00:03.1]} 51. Kb3
{[%clk 0:01:20.9]} 51... h5 {[%clk 0:00:03.1]} 52. e5 {[%clk 0:01:21.2]} 52...
g5 {[%clk 0:00:02.2]} 53. e6 {[%clk 0:01:21.4]} 53... Rf8 {[%clk 0:00:03.1]} 54.
e7 {[%clk 0:01:21.7]} 54... Re8 {[%clk 0:00:04]} 55. c4+ {[%clk 0:01:22]} 55...
Kc6 {[%clk 0:00:04.3]} 56. b5+ {[%clk 0:01:22.3]} 56... Kc5 {[%clk 0:00:04.7]}
57. Kc3 {[%clk 0:01:22.2]} 57... g4 {[%clk 0:00:05]} 58. Kb3 {[%clk 0:01:22]}
58... Kd6 {[%clk 0:00:04.2]} 59. Kb4 {[%clk 0:01:22]} 59... Kd7 {[%clk
0:00:03.7]} 60. c5 {[%clk 0:01:22.1]} 60... Kc7 {[%clk 0:00:02.5]} 61. b6+
{[%clk 0:01:21.7]} 61... Kc6 {[%clk 0:00:02.9]} 62. Kc4 {[%clk 0:01:21.9]} 62...
Kd7 {[%clk 0:00:02.8]} 63. Kb5 {[%clk 0:01:22.2]} 63... Kc8 {[%clk 0:00:02.8]}
64. c6 {[%clk 0:01:22.3]} 64... h4 {[%clk 0:00:03.4]} 65. gxh4 {[%clk
0:01:21.6]} 65... g3 {[%clk 0:00:04]} 66. hxg3 {[%clk 0:01:21.2]} 66... Kb8
{[%clk 0:00:03.9]} 67. Kc5 {[%clk 0:01:19.9]} 67... Kc8 {[%clk 0:00:04.3]} 68.
Kd6 {[%clk 0:01:19.7]} 68... Kb8 {[%clk 0:00:05]} 69. Kd7 {[%clk 0:01:18.3]} 1-0

[Event "Early-Titled-Tuesday-Blitz-September-05-2023"]
[Site "Chess.com"]
[Date "2023.09.05"]
[Round "5"]
[White "Nf3c5"]
[Black "GaalZsoka"]
[Result "1-0"]
[WhiteElo "2613"]
[BlackElo "2461"]
[TimeControl "180+1"]
[EndTime "8:54:43 PDT"]
[Termination "Nf3c5 won by resignation"]

1. e4 {[%clk 0:03:00.9]} 1... e5 {[%clk 0:02:59]} 2. f4 {[%clk 0:02:58.1]} 2...
exf4 {[%clk 0:02:51.2]} 3. Nf3 {[%clk 0:02:57.7]} 3... d6 {[%clk 0:02:40]} 4. d4
{[%clk 0:02:53.2]} 4... Nf6 {[%clk 0:02:39.6]} 5. Nc3 {[%clk 0:02:48]} 5... Be7
{[%clk 0:02:34.5]} 6. Bxf4 {[%clk 0:02:46.4]} 6... O-O {[%clk 0:02:35]} 7. Bd3
{[%clk 0:02:45.8]} 7... Nc6 {[%clk 0:02:30.4]} 8. a3 {[%clk 0:02:31.4]} 8... Bg4
{[%clk 0:02:30.1]} 9. Be3 {[%clk 0:02:27.2]} 9... Nh5 {[%clk 0:02:11]} 10. O-O
{[%clk 0:02:20.3]} 10... Bf6 {[%clk 0:02:10.8]} 11. Ne2 {[%clk 0:02:05.4]} 11...
g6 {[%clk 0:01:51.4]} 12. Bh6 {[%clk 0:01:49]} 12... Re8 {[%clk 0:01:49.7]} 13.
c3 {[%clk 0:01:48.9]} 13... Bxf3 {[%clk 0:01:40.9]} 14. Rxf3 {[%clk 0:01:46.7]}
14... Bg5 {[%clk 0:01:41.6]} 15. Bxg5 {[%clk 0:01:43]} 15... Qxg5 {[%clk
0:01:42.5]} 16. Qb3 {[%clk 0:01:40.6]} 16... Nd8 {[%clk 0:01:02.6]} 17. Raf1
{[%clk 0:01:35.3]} 17... Rf8 {[%clk 0:01:02.9]} 18. Bc4 {[%clk 0:01:27.8]} 18...
Qe7 {[%clk 0:01:00.1]} 19. g4 {[%clk 0:01:11.9]} 19... Ng7 {[%clk 0:00:49.4]}
20. Ng3 {[%clk 0:01:10.4]} 20... c6 {[%clk 0:00:38.3]} 21. a4 {[%clk 0:00:52.1]}
21... Nde6 {[%clk 0:00:37.6]} 22. Kg2 {[%clk 0:00:29.5]} 22... Ng5 {[%clk
0:00:36.4]} 23. Rf4 {[%clk 0:00:29.8]} 23... N7e6 {[%clk 0:00:35.8]} 24. R4f2
{[%clk 0:00:28.7]} 24... b5 {[%clk 0:00:20.8]} 25. axb5 {[%clk 0:00:28.2]} 25...
cxb5 {[%clk 0:00:21.7]} 26. Bd5 {[%clk 0:00:28.6]} 26... Nc7 {[%clk 0:00:15.6]}
27. Bxa8 {[%clk 0:00:24.7]} 27... Nxa8 {[%clk 0:00:12.4]} 28. Rf4 {[%clk
0:00:19.9]} 28... Ne6 {[%clk 0:00:10.8]} 29. Rf6 {[%clk 0:00:19.2]} 29... Nac7
{[%clk 0:00:10.5]} 30. h4 {[%clk 0:00:18]} 30... a5 {[%clk 0:00:06.5]} 31. g5
{[%clk 0:00:17.6]} 31... a4 {[%clk 0:00:06.4]} 32. Qd1 {[%clk 0:00:16.7]} 32...
d5 {[%clk 0:00:06.6]} 33. e5 {[%clk 0:00:16.7]} 33... Ng7 {[%clk 0:00:05]} 34.
Qf3 {[%clk 0:00:15.1]} 34... Nce6 {[%clk 0:00:05.4]} 35. Qxd5 {[%clk 0:00:14.6]}
35... Ne8 {[%clk 0:00:05.4]} 36. R6f2 {[%clk 0:00:13.7]} 36... N8c7 {[%clk
0:00:05]} 37. Qc6 {[%clk 0:00:13.1]} 37... Rd8 {[%clk 0:00:03.8]} 38. Ne4 {[%clk
0:00:13.3]} 38... Nd5 {[%clk 0:00:03.6]} 39. Nf6+ {[%clk 0:00:12.4]} 39... Nxf6
{[%clk 0:00:03.6]} 40. Rxf6 {[%clk 0:00:13.1]} 40... Qe8 {[%clk 0:00:02.4]} 41.
Qxe8+ {[%clk 0:00:10.4]} 41... Rxe8 {[%clk 0:00:03.1]} 42. Rxf7 {[%clk 0:00:11]}
1-0

[Event "Early-Titled-Tuesday-Blitz-September-05-2023"]
[Site "Chess.com"]
[Date "2023.09.05"]
[Round "5"]
[White "gm_rashid"]
[Black "Aevengho"]
[Result "0-1"]
[WhiteElo "2387"]
[BlackElo "2537"]
[TimeControl "180+1"]
[EndTime "8:54:44 PDT"]
[Termination "Aevengho won on time"]

1. e4 {[%clk 0:02:55.8]} 1... d6 {[%clk 0:02:59.6]} 2. d4 {[%clk 0:02:56]} 2...
Nf6 {[%clk 0:02:59.4]} 3. f3 {[%clk 0:02:56]} 3... g6 {[%clk 0:02:59.3]} 4. Be3
{[%clk 0:02:56.5]} 4... Bg7 {[%clk 0:02:59.1]} 5. Qd2 {[%clk 0:02:56.7]} 5... c6
{[%clk 0:02:58.5]} 6. Nc3 {[%clk 0:02:56.8]} 6... b5 {[%clk 0:02:58.2]} 7. g4
{[%clk 0:02:54]} 7... h5 {[%clk 0:02:57.6]} 8. g5 {[%clk 0:02:54.3]} 8... Nfd7
{[%clk 0:02:57.9]} 9. f4 {[%clk 0:02:51.5]} 9... Nb6 {[%clk 0:02:57.4]} 10. Nf3
{[%clk 0:02:45.7]} 10... Qc7 {[%clk 0:02:54.3]} 11. Bd3 {[%clk 0:02:34.8]} 11...
Bg4 {[%clk 0:02:50.7]} 12. Qf2 {[%clk 0:02:25.6]} 12... b4 {[%clk 0:02:39.3]}
13. Ne2 {[%clk 0:02:20.1]} 13... N8d7 {[%clk 0:02:39.7]} 14. O-O-O {[%clk
0:02:05.9]} 14... c5 {[%clk 0:02:29.3]} 15. dxc5 {[%clk 0:01:42.9]} 15... Nxc5
{[%clk 0:02:14.3]} 16. h3 {[%clk 0:01:39]} 16... Bd7 {[%clk 0:01:56.7]} 17. Bd4
{[%clk 0:01:34.4]} 17... Rc8 {[%clk 0:01:51.3]} 18. Ng3 {[%clk 0:01:26.9]} 18...
O-O {[%clk 0:00:57.8]} 19. Bxg7 {[%clk 0:01:25.4]} 19... Kxg7 {[%clk 0:00:58.7]}
20. f5 {[%clk 0:01:26]} 20... b3 {[%clk 0:00:49.9]} 21. f6+ {[%clk 0:01:24.5]}
21... Kg8 {[%clk 0:00:45.1]} 22. axb3 {[%clk 0:01:11.3]} 22... e5 {[%clk
0:00:36.9]} 23. Kb1 {[%clk 0:01:01.5]} 23... Ne6 {[%clk 0:00:22.1]} 24. Nh4
{[%clk 0:00:29.2]} 24... a5 {[%clk 0:00:19.2]} 25. Nhf5 {[%clk 0:00:24.8]} 25...
Nf4 {[%clk 0:00:14.8]} 26. Ne7+ {[%clk 0:00:24.3]} 26... Kh7 {[%clk 0:00:14.4]}
27. Nxc8 {[%clk 0:00:24.6]} 27... Rxc8 {[%clk 0:00:15.3]} 28. Rh2 {[%clk
0:00:18.9]} 28... a4 {[%clk 0:00:15.3]} 29. bxa4 {[%clk 0:00:16.9]} 29... Nxa4
{[%clk 0:00:15]} 30. Nf1 {[%clk 0:00:14.1]} 30... Rb8 {[%clk 0:00:14.8]} 31. b3
{[%clk 0:00:13.3]} 31... Qc3 {[%clk 0:00:14.6]} 32. Kc1 {[%clk 0:00:08.6]} 32...
Nc5 {[%clk 0:00:12.9]} 33. Re1 {[%clk 0:00:04.7]} 33... Ncxd3+ {[%clk
0:00:11.8]} 34. Kd1 {[%clk 0:00:03.8]} 34... Nxf2+ {[%clk 0:00:11]} 35. Rxf2
{[%clk 0:00:04.7]} 35... Nxh3 {[%clk 0:00:05.3]} 36. Rd2 {[%clk 0:00:05]} 36...
Nf4 {[%clk 0:00:02.9]} 37. Rd3 {[%clk 0:00:01.9]} 37... Bg4+ {[%clk 0:00:03]}
38. Kc1 {[%clk 0:00:01.1]} 38... Nxd3+ {[%clk 0:00:03.9]} 0-1

[Event "Early-Titled-Tuesday-Blitz-September-05-2023"]
[Site "Chess.com"]
[Date "2023.09.05"]
[Round "5"]
[White "MrBad74"]
[Black "hakanazeri2"]
[Result "1-0"]
[WhiteElo "2360"]
[BlackElo "2585"]
[TimeControl "180+1"]
[EndTime "8:54:44 PDT"]
[Termination "MrBad74 won by resignation"]

1. e4 {[%clk 0:03:00.9]} 1... c5 {[%clk 0:02:59]} 2. Nf3 {[%clk 0:02:59.9]} 2...
Nc6 {[%clk 0:02:59.7]} 3. Bb5 {[%clk 0:02:59.4]} 3... e6 {[%clk 0:02:59.2]} 4.
O-O {[%clk 0:02:52.5]} 4... Nge7 {[%clk 0:02:57.4]} 5. d4 {[%clk 0:02:52]} 5...
cxd4 {[%clk 0:02:56.9]} 6. Nxd4 {[%clk 0:02:52.1]} 6... Nxd4 {[%clk 0:02:57.8]}
7. Qxd4 {[%clk 0:02:51.5]} 7... a6 {[%clk 0:02:58.7]} 8. Be2 {[%clk 0:02:50.8]}
8... Nc6 {[%clk 0:02:57]} 9. Qe3 {[%clk 0:02:50.9]} 9... Be7 {[%clk 0:02:56]}
10. c4 {[%clk 0:02:50.8]} 10... O-O {[%clk 0:02:55]} 11. Nc3 {[%clk 0:02:50.5]}
11... b6 {[%clk 0:02:50.5]} 12. Rd1 {[%clk 0:02:49.2]} 12... Bb7 {[%clk
0:02:49.1]} 13. Qg3 {[%clk 0:02:41.2]} 13... Bf6 {[%clk 0:02:37.2]} 14. Bf4
{[%clk 0:02:37]} 14... Nd4 {[%clk 0:02:29.2]} 15. Bf1 {[%clk 0:02:28.6]} 15...
Nc6 {[%clk 0:02:21.8]} 16. e5 {[%clk 0:02:12]} 16... Bh4 {[%clk 0:02:19.5]} 17.
Qd3 {[%clk 0:02:11.1]} 17... Bg5 {[%clk 0:01:36.9]} 18. Bg3 {[%clk 0:02:07.1]}
18... Bc8 {[%clk 0:01:34.2]} 19. Ne4 {[%clk 0:02:00.2]} 19... Be7 {[%clk
0:01:31.9]} 20. Nd6 {[%clk 0:02:00.2]} 20... f5 {[%clk 0:01:29.2]} 21. exf6
{[%clk 0:01:52.6]} 21... Bxf6 {[%clk 0:01:27.8]} 22. Nxc8 {[%clk 0:01:52.5]}
22... Rxc8 {[%clk 0:01:26.6]} 23. Qxd7 {[%clk 0:01:52.3]} 23... Qxd7 {[%clk
0:01:25.9]} 24. Rxd7 {[%clk 0:01:52.7]} 24... Bxb2 {[%clk 0:01:26.5]} 25. Rad1
{[%clk 0:01:42.8]} 25... e5 {[%clk 0:01:15.8]} 26. a4 {[%clk 0:01:29.8]} 26...
Bd4 {[%clk 0:01:14.7]} 27. h4 {[%clk 0:01:20.1]} 27... Rf6 {[%clk 0:01:11.4]}
28. h5 {[%clk 0:01:17.4]} 28... Rcf8 {[%clk 0:01:11.2]} 29. Rd2 {[%clk 0:01:17]}
29... h6 {[%clk 0:01:11.7]} 30. Bd3 {[%clk 0:01:12.3]} 30... R8f7 {[%clk
0:00:58.2]} 31. Rd5 {[%clk 0:01:01.4]} 31... Rf8 {[%clk 0:00:52.3]} 32. Be4
{[%clk 0:00:57.7]} 32... Ne7 {[%clk 0:00:49.6]} 33. Rd7 {[%clk 0:00:56.7]} 33...
Nf5 {[%clk 0:00:49.9]} 34. Kh2 {[%clk 0:00:41.2]} 34... Nxg3 {[%clk 0:00:45.6]}
35. fxg3 {[%clk 0:00:42.1]} 35... Rf1 {[%clk 0:00:43.5]} 36. Bf3 {[%clk
0:00:34.3]} 36... e4 {[%clk 0:00:32.1]} 37. Bxe4 {[%clk 0:00:25.3]} 37... Bg1+
{[%clk 0:00:31.8]} 38. Kh3 {[%clk 0:00:24.6]} 38... Be3 {[%clk 0:00:31.9]} 39.
Re2 {[%clk 0:00:20.6]} 39... Bg5 {[%clk 0:00:26.4]} 40. Bd5+ {[%clk 0:00:19.8]}
40... Kh8 {[%clk 0:00:26.1]} 41. Kg4 {[%clk 0:00:16.9]} 41... Bf6 {[%clk
0:00:18.6]} 42. Re6 {[%clk 0:00:16.2]} 42... Rd1 {[%clk 0:00:17.6]} 43. Rxb6
{[%clk 0:00:15.4]} 43... Rd4+ {[%clk 0:00:18.1]} 44. Kh3 {[%clk 0:00:15.1]}
44... Bg5 {[%clk 0:00:18]} 45. Rbb7 {[%clk 0:00:15.2]} 45... Rd1 {[%clk
0:00:14.5]} 46. Rxg7 {[%clk 0:00:13.8]} 46... Rh1+ {[%clk 0:00:13.4]} 47. Kg4
{[%clk 0:00:13.9]} 1-0